bitfinex-derivatives/quotes_ETHF0:USTF0_20251028
["timestamp","ask_amount","ask_price","bid_price","bid_amount"]
[1761652816681,2.9773,4115.4,4115.3,5.1936]
[1761652816976,5.40398647,4115.6,4115.5,6.1178]
[1761652816977,3.21048647,4115.6,4115.5,6.1178]
[1761652817375,3.21048647,4115.6,4115.5,21.94997367]
[1761652818181,8.38128647,4115.6,4115.5,6.1178]
[1761652818481,6.18778647,4115.6,4115.5,6.1178]
[1761652818684,2.97998647,4115.6,4115.5,6.1178]
[1761652819374,0.00268647,4115.6,4115.5,6.1178]
[1761652819574,0.00268647,4115.6,4115.5,21.94997367]
[1761652823480,0.53196898,4115.6,4115.5,21.94997367]
[1761652824086,0.00268647,4115.6,4115.5,21.94997367]
[1761652825374,0.00268647,4115.6,4115.5,22.02277367]
[1761652825686,0.00268647,4115.6,4115.5,21.94997367]
[1761652827883,3.6548,4116.8,4115.5,10.47093146]
[1761652828078,2.9773,4116.8,4116.7,5.1936]
[1761652828276,1.70242322,4116.8,4116.7,5.1936]
[1761652828683,0.24112322,4116.8,4116.7,5.1936]
[1761652828983,1.46319071,4116.8,4116.7,2.91761344]
[1761652829181,5.17269071,4116.8,4116.7,2.91761344]
[1761652829580,5.48932776,4116.8,4116.7,5.19641344]
[1761652829982,5.41652776,4116.8,4116.7,5.19641344]
[1761652830583,5.48932776,4116.8,4116.7,3.68151344]
[1761652830789,5.48932776,4116.8,4116.7,0.00281344]
[1761652831388,5.48932776,4116.8,4116.7,3.68151344]
[1761652831787,5.48932776,4116.8,4116.7,2.28161344]
[1761652832786,5.48932776,4116.8,4116.7,0.00281344]
[1761652832990,5.48932776,4116.8,4116.0,0.9242]
[1761652832991,5.5316229,4116.8,4116.1,2.2788]
[1761652833288,5.1708,4116.2,4116.1,3.6787]
[1761652833689,5.2436,4116.2,4116.1,3.6787]
[1761652834094,5.2436,4116.2,4116.1,0.00212879]
[1761652834292,5.1708,4116.2,4116.1,0.00212879]
[1761652834493,5.2436,4116.2,4116.1,2.26182879]
[1761652834886,5.2436,4116.2,4116.1,3.76712879]
[1761652835382,5.2436,4116.2,4116.1,2.26182879]
[1761652835587,5.2436,4116.2,4116.1,0.00212879]
[1761652835789,6.54817113,4116.2,4116.1,0.00212879]
[1761652836496,5.2436,4116.2,4116.1,0.00212879]
[1761652839789,2.11,4116.1,4115.1,3.2078]
[1761652839990,5.1429,4115.5,4115.4,3.765]
[1761652840190,5.1429,4114.9,4114.8,3.765]
[1761652840594,5.1429,4114.9,4114.8,14.57564221]
[1761652840790,5.1429,4114.9,4114.8,14.57855874]
[1761652840990,5.2157,4114.9,4114.8,3.76791653]
[1761652841297,5.1429,4114.9,4114.8,3.76791653]
[1761652843189,5.2157,4114.9,4114.8,3.76791653]
[1761652843384,6.52066355,4114.9,4114.8,3.76791653]
[1761652843988,6.52066355,4114.9,4114.8,2.26261653]
[1761652844396,6.52066355,4114.9,4114.8,3.76791653]
[1761652844598,4.33786355,4114.9,4114.8,5.30551653]
[1761652845099,3.0329,4114.9,4114.8,5.30551653]
[1761652847897,5.1429,4114.9,4114.8,5.30551653]
[1761652848500,5.2157,4114.9,4114.8,3.76791653]
[1761652848690,6.52066355,4114.9,4114.8,2.26261653]
[1761652848886,5.2157,4114.9,4114.8,0.00291653]
[1761652849397,5.2157,4114.9,4114.8,2.26261653]
[1761652850099,5.1429,4114.9,4114.8,2.26261653]
[1761652850398,6.01171642,4114.9,4114.8,2.26261653]
[1761652851196,6.01171642,4114.9,4114.8,3.76791653]
[1761652851603,3.90171642,4114.9,4114.8,5.30551653]
[1761652852101,6.01171642,4114.9,4114.8,5.30551653]
[1761652852898,3.0329,4114.9,4114.8,5.30551653]
[1761652854006,3.55951014,4114.9,4114.8,5.30551653]
[1761652854203,2.01911014,4114.9,4114.8,5.30551653]
[1761652855001,3.55951014,4114.9,4114.8,5.30551653]
[1761652860308,4.42832656,4114.9,4114.8,5.30551653]
[1761652860915,6.53832656,4114.9,4114.8,5.30551653]
[1761652861208,6.53832656,4114.9,4114.8,3.76791653]
[1761652861409,2.11,4114.8,4114.1,1.04377627]
[1761652861614,5.2382,4114.2,4114.1,1.04377627]
[1761652861808,3.55951014,4114.2,4114.1,4.08667627]
[1761652862316,5.76481014,4114.2,4114.1,4.08950883]
[1761652862911,6.00683061,4114.2,4114.1,4.08950883]
[1761652865315,6.87529692,4114.2,4114.1,4.08950883]
[1761652866216,6.55469692,4114.2,4114.1,4.08950883]
[1761652867214,5.68623061,4114.2,4114.1,4.08950883]
[1761652869320,5.68623061,4114.2,4114.1,2.55190883]
[1761652869519,5.68623061,4114.2,4114.1,0.00283256]
[1761652870018,5.68623061,4114.2,4114.1,2.03933256]
[1761652871210,5.68623061,4114.2,4113.0,0.8271]
[1761652871211,1.2546,4113.8,4113.0,4.0349]
[1761652871411,2.5232,4113.6,4113.5,3.2839]
[1761652871614,3.04981014,4113.6,4113.5,3.2839]
[1761652871817,2.28981014,4113.6,4113.5,19.11607367]
[1761652872123,4.26221014,4113.6,4113.5,19.11607367]
[1761652872325,4.26524021,4113.6,4113.5,19.11898689]
[1761652873223,4.26524021,4113.6,4113.5,20.45698689]
[1761652873521,0.52964021,4113.6,4113.5,24.54508689]
[1761652873722,3.2078,4115.1,4115.0,2.0549]
[1761652873926,3.2078,4115.6,4115.1,1.2474]
[1761652874118,3.2078,4115.6,4115.2,2.0365]
[1761652874319,3.45388858,4115.6,4115.2,2.0365]
[1761652874615,0.0728,4115.5,4115.2,2.0365]
[1761652874824,4.1766,4115.1,4115.0,2.0549]
[1761652875813,2.5232,4115.1,4115.0,3.3929]
[1761652876316,4.1766,4115.1,4115.0,3.3929]
[1761652876822,4.1766,4115.1,4115.0,5.4294]
[1761652877223,4.1766,4115.1,4115.0,2.0365]
[1761652878324,4.1766,4115.1,4115.0,3.2839]
[1761652880226,2.5232,4114.6,4114.5,2.0365]
[1761652880427,2.5232,4114.1,4113.8,3.2078]
[1761652880722,2.5232,4113.9,4113.8,4.4552]
[1761652880930,4.4956,4113.9,4113.8,4.4552]
[1761652881525,4.4956,4113.9,4113.8,5.7932]
[1761652882026,4.4956,4113.9,4113.8,2.5854]
[1761652882428,4.4956,4113.9,4113.8,4.6219]
[1761652884019,4.4956,4113.9,4113.8,7.8297]
[1761652884224,0.7782,4114.5,4114.3,4.6219]
[1761652884225,2.5232,4114.4,4114.3,4.6219]
[1761652884725,2.5232,4114.4,4114.0,2.0365]
[1761652884923,4.4956,4114.1,4114.0,3.2839]
[1761652885323,4.4956,4114.1,4114.0,11.18103146]
[1761652887530,3.227,4114.1,4114.0,11.18103146]
[1761652887730,4.4956,4114.4,4114.3,4.6219]
[1761652890430,3.227,4114.4,4114.3,4.6219]
[1761652890633,1.9724,4114.5,4114.4,4.6219]
[1761652890835,4.4956,4114.9,4114.8,3.2839]
[1761652892133,4.4956,4114.9,4114.8,1.2474]
[1761652892434,1.9724,4114.8,4114.3,6.4917]
[1761652892630,4.4956,4114.4,4114.3,3.2078]
[1761652892833,2.5232,4114.1,4114.0,3.2839]
[1761652893029,4.4956,4114.1,4114.0,3.2839]
[1761652893625,4.4956,4114.1,4114.0,4.6219]
[1761652894436,2.6578,4112.6,4112.5,0.49807952]
[1761652894738,2.2257,4111.5,4111.4,2.3858]
[1761652894936,5.8656,4111.6,4111.5,2.3858]
[1761652895338,8.0601,4111.6,4111.5,9.02064468]
[1761652895542,8.61722918,4111.6,4111.5,9.02367021]
[1761652896233,0.55712918,4111.6,4111.5,10.21657021]
[1761652896541,4.6019,4112.9,4112.8,4.8668]
[1761652896744,5.8656,4112.9,4112.8,2.7138]
[1761652897332,5.86757964,4112.9,4112.8,2.7138]
[1761652898028,5.86757964,4112.9,4112.8,4.8668]
[1761652898239,4.60387964,4112.9,4112.8,4.8668]
[1761652898434,6.79837964,4112.9,4112.8,4.8668]
[1761652899034,8.06207964,4112.9,4112.8,4.8668]
[1761652900841,8.06207964,4112.9,4112.8,2.7138]
[1761652901037,4.8523,4112.6,4112.5,3.5276]
[1761652901344,4.8523,4112.6,4112.5,4.8668]
[1761652901839,3.20977964,4112.9,4112.8,2.153]
[1761652902046,3.20977964,4112.9,4112.8,4.8668]
[1761652902737,0.00197964,4112.9,4112.8,4.8668]
[1761652903339,1.39607964,4112.9,4112.8,4.8668]
[1761652903543,3.59057964,4112.9,4112.8,4.8668]
[1761652903738,0.00197964,4112.9,4112.8,4.8668]
[1761652905137,0.00197964,4112.9,4112.8,4.9396]
[1761652907744,4.07432192,4113.9,4113.8,4.8668]
[1761652907937,4.07432192,4113.9,4113.5,0.8332]
[1761652907938,0.86652192,4114.2,4114.0,2.7138]
[1761652908138,2.1945,4114.3,4113.5,0.8332]
[1761652908139,3.5886,4114.3,4114.2,4.8668]
[1761652908541,4.13411367,4114.3,4114.2,4.8668]
[1761652908737,0.5473947,4114.3,4114.2,4.8668]
[1761652909538,4.1359947,4114.3,4114.2,4.8668]
[1761652911652,5.3996947,4114.3,4114.2,4.8668]
[1761652912048,0.5473947,4114.3,4114.2,4.8668]
[1761652912752,0.00188103,4114.3,4114.2,4.9396]
[1761652913145,3.2078,4115.0,4114.9,4.8668]
[1761652913454,0.54539112,4115.0,4114.9,4.8668]
[1761652913649,3.2078,4115.5,4115.4,1.3746]
[1761652913950,0.54539817,4115.5,4115.4,4.8668]
[1761652914155,0.54760591,4115.5,4115.4,4.94215027]
[1761652914354,0.86652192,4116.7,4116.5,0.8332]
[1761652914549,4.45512192,4116.9,4116.8,4.8668]
[1761652914746,5.40171454,4116.9,4116.8,2.7138]
[1761652915044,3.0261,4116.0,4115.7,3.5276]
[1761652915352,4.8523,4115.8,4115.7,1.092]
[1761652915552,5.40171454,4115.8,4115.7,1.092]
[1761652915752,5.40171454,4115.8,4115.7,2.4312]
[1761652916053,0.54941454,4115.8,4115.7,4.657]
[1761652916750,0.00176709,4116.0,4115.9,1.3746]
[1761652916951,6.23426685,4116.0,4115.9,2.7138]
[1761652917251,3.5886,4115.6,4115.5,8.0746]
[1761652918252,4.8523,4115.6,4115.5,3.2078]
[1761652918452,4.8523,4115.6,4115.5,8.0746]
[1761652918651,4.9251,4115.6,4115.5,3.2078]
[1761652918849,5.6839,4115.5,4115.4,0.00255027]
[1761652919054,6.23193233,4115.5,4115.4,4.86935027]
[1761652919259,0.54803233,4115.5,4115.4,4.86935027]
[1761652919555,4.8523,4115.8,4115.4,0.00255027]
[1761652919744,5.6839,4115.5,4115.4,0.00255027]
[1761652919944,6.23181769,4115.5,4115.4,0.00255027]
[1761652920147,0.54791769,4115.5,4115.4,4.86935027]
[1761652920356,4.13651769,4115.5,4115.4,4.86935027]
[1761652920659,6.23181769,4115.5,4115.4,0.00255027]
[1761652920849,6.30461769,4115.5,4115.4,0.00255027]
[1761652921649,7.09789594,4115.5,4115.4,0.00255027]
[1761652921855,6.23181769,4115.5,4115.4,2.71635027]
[1761652922058,6.23181769,4115.5,4115.4,1.37715027]
[1761652922252,6.23181769,4115.5,4115.4,0.00255027]
[1761652922450,6.30461769,4115.5,4115.4,0.00255027]
[1761652922649,7.17069594,4115.5,4115.4,0.00255027]
[1761652923258,10.37849594,4115.5,4115.4,0.00255027]
[1761652923557,9.51241769,4115.5,4115.4,0.00255027]
[1761652923766,5.6839,4114.5,4114.4,4.5824]
[1761652923960,6.23181769,4114.5,4114.4,4.5824]
[1761652924651,6.23181769,4114.5,4114.4,4.58473083]
[1761652925859,6.23181769,4114.5,4114.4,3.21013083]
[1761652926159,6.23181769,4114.5,4114.4,0.00233083]
[1761652927262,7.09562379,4114.5,4114.4,0.00233083]
[1761652928150,7.16842379,4114.5,4114.4,0.00233083]
[1761652928351,6.30461769,4114.5,4114.4,0.00233083]
[1761652928861,6.23181769,4114.5,4114.4,0.00233083]
[1761652929858,6.23181769,4114.5,4114.4,1.65083083]
[1761652931358,6.23181769,4114.5,4114.4,3.13943083]
[1761652933260,7.09722478,4114.5,4114.4,3.13943083]
[1761652933960,7.09722478,4114.5,4114.4,0.00233083]
[1761652934160,6.23181769,4114.5,4114.4,0.00233083]
[1761652934855,6.30461769,4114.5,4114.4,0.00233083]
[1761652935161,7.52752684,4114.5,4114.4,0.00233083]
[1761652935354,7.60032684,4114.5,4114.4,0.00233083]
[1761652935556,7.60032684,4114.5,4114.4,1.65083083]
[1761652935760,6.23181769,4114.5,4114.4,1.65083083]
[1761652936151,7.52752684,4114.5,4114.4,1.65083083]
[1761652937556,7.52752684,4114.5,4114.4,0.00233083]
[1761652937760,6.23181769,4114.5,4114.4,0.00233083]
[1761652939468,6.30461769,4114.5,4114.4,0.00233083]
[1761652940459,6.23181769,4114.5,4114.4,0.00233083]
[1761652940656,1.85073574,4114.5,4114.4,5.49543083]
[1761652940859,0.54791769,4114.5,4114.4,8.77603083]
[1761652942068,0.54791769,4114.5,4114.4,8.70323083]
[1761652942858,4.52961769,4114.5,4114.4,8.70323083]
[1761652943061,6.03331769,4114.5,4114.4,8.70323083]
[1761652943265,6.95551769,4114.5,4114.4,8.70323083]
[1761652943567,6.03601615,4114.5,4114.4,8.70323083]
[1761652944363,6.95821615,4114.5,4114.4,3.21013083]
[1761652944566,7.82685657,4114.5,4114.4,3.21013083]
[1761652944864,8.2610342,4114.5,4114.4,0.00233083]
[1761652945067,6.95821615,4114.5,4114.4,0.00233083]
[1761652945267,7.03101615,4114.5,4114.4,0.00233083]
[1761652945462,6.95821615,4114.5,4114.4,0.00233083]
[1761652945663,7.03101615,4114.5,4114.4,0.00233083]
[1761652945969,6.95821615,4114.5,4114.4,0.00233083]
[1761652947564,6.95821615,4114.5,4113.4,3.2078]
[1761652947565,7.81141615,4114.5,4113.4,3.2078]
[1761652947768,7.81141615,4114.5,4113.4,8.7009]
[1761652947769,7.27768354,4113.5,4113.4,8.7009]
[1761652947974,6.95821615,4113.5,4113.4,6.3449]
[1761652948273,8.26334147,4113.5,4113.4,6.3449]
[1761652948567,8.26334147,4113.5,4113.4,4.85902452]
[1761652948969,6.95821615,4113.5,4113.4,8.70362452]
[1761652949167,8.26334147,4113.5,4113.4,8.70362452]
[1761652949570,8.26334147,4113.5,4113.4,6.34762452]
[1761652950171,6.95821615,4113.5,4113.4,6.34762452]
[1761652952572,6.95821615,4113.5,4113.4,4.69912452]
[1761652952780,8.26334147,4113.5,4113.4,3.21052452]
[1761652953573,6.95821615,4113.5,4113.4,4.85902452]
[1761652953867,2.10491615,4113.5,4113.4,8.70362452]
[1761652954178,0.55061615,4113.5,4113.4,8.70362452]
[1761652954375,0.55061615,4113.5,4113.4,8.45122452]
[1761652954775,0.87015808,4113.5,4113.4,6.34762452]
[1761652954975,1.42077423,4113.5,4113.4,6.34762452]
[1761652955174,7.41257423,4113.5,4113.4,8.45122452]
[1761652955376,6.54241615,4113.5,4113.4,4.85902452]
[1761652955976,6.54241615,4113.5,4113.4,5.35872452]
[1761652956171,7.41250403,4113.5,4113.4,5.35872452]
[1761652956581,6.56330403,4113.5,4113.4,8.56652452]
[1761652956776,5.01670403,4113.5,4113.4,8.56652452]
[1761652957178,1.42070403,4113.5,4113.4,8.56652452]
[1761652957480,0.87008788,4113.5,4113.4,8.56652452]
[1761652957778,1.42070403,4113.5,4113.4,8.56652452]
[1761652957983,0.87008788,4113.5,4113.4,8.56652452]
[1761652958177,1.42070403,4113.5,4113.4,8.56652452]
[1761652958374,5.01670403,4113.5,4113.4,8.56652452]
[1761652960879,1.42070403,4113.5,4113.4,8.56652452]
[1761652961084,0.87008788,4113.5,4113.4,8.56652452]
[1761652961284,1.42070403,4113.5,4113.4,8.56652452]
[1761652961485,0.87008788,4113.5,4113.4,8.56652452]
[1761652961680,3.58960403,4113.5,4113.4,8.56652452]
[1761652962987,2.71951615,4113.5,4113.4,8.56652452]
[1761652963889,6.54241615,4113.5,4113.4,3.21052452]
[1761652964989,7.41213625,4113.5,4113.4,3.21052452]
[1761652965288,7.92034147,4113.5,4113.4,3.21052452]
[1761652965482,5.9918,4112.5,4112.4,5.1065]
[1761652965685,6.54241615,4112.5,4112.4,5.1065]
[1761652966092,4.14661615,4112.5,4112.4,5.1065]
[1761652966486,4.14905221,4112.5,4112.4,5.10860137]
[1761652968690,5.69565221,4112.5,4112.4,1.40110137]
[1761652968992,6.54485221,4112.5,4112.4,1.40110137]
[1761652969191,6.54485221,4112.5,4112.4,0.00210137]
[1761652969393,6.54485221,4112.5,4112.4,1.40110137]
[1761652969794,6.54485221,4112.5,4112.4,3.00500137]
[1761652970089,6.54485221,4112.5,4112.4,5.10860137]
[1761652970292,6.54485221,4112.5,4112.4,3.00500137]
[1761652970593,6.54485221,4112.5,4112.4,5.10860137]
[1761652973492,6.54485221,4112.5,4112.4,1.40110137]
[1761652973894,6.54485221,4112.5,4112.4,5.10860137]
[1761652975199,6.86359018,4112.5,4112.4,5.10860137]
[1761652975491,6.55124517,4112.5,4112.4,5.10860137]
[1761652975697,0.55944517,4112.5,4112.4,5.10860137]
[1761652976198,5.02479929,4112.5,4112.4,5.10860137]
[1761652976396,6.57139929,4112.5,4112.4,5.10860137]
[1761652976694,7.42059929,4112.5,4112.4,5.10860137]
[1761652978695,6.57139929,4112.5,4112.4,5.10860137]
[1761652979196,5.70204517,4112.5,4112.4,5.10860137]
[1761652979393,6.55124517,4112.5,4112.4,1.40110137]
[1761652979802,7.42059929,4112.5,4112.4,0.00210137]
[1761652979997,6.55124517,4112.5,4112.4,0.00210137]
[1761652980499,6.62404517,4112.5,4112.4,0.00210137]
[1761652980694,7.92807635,4112.5,4112.4,0.00210137]
[1761652981093,7.85527635,4112.5,4112.4,0.00210137]
[1761652982198,7.92807635,4112.5,4112.4,0.00210137]
[1761652982902,7.85527635,4112.5,4112.4,0.00210137]
[1761652983796,6.55124517,4112.5,4112.4,0.00210137]
[1761652983996,6.62404517,4112.5,4112.4,0.00210137]
[1761652984398,6.55124517,4112.5,4112.4,0.00210137]
[1761652984798,7.85527635,4112.5,4112.4,0.00210137]
[1761652984999,7.92807635,4112.5,4112.4,0.00210137]
[1761652985903,7.85527635,4112.5,4112.4,0.00210137]
[1761652986905,7.92807635,4112.5,4112.4,0.00210137]
[1761652988310,7.85527635,4112.5,4112.4,0.00210137]
[1761652988498,7.92807635,4112.5,4112.4,0.00210137]
[1761652988902,6.62404517,4112.5,4112.4,0.00210137]
[1761652990007,4.6471,4111.6,4111.5,4.5151]
[1761652990208,5.20410911,4111.6,4111.5,4.5151]
[1761652990603,5.20410911,4111.6,4111.5,3.2078]
[1761652990803,4.6471,4111.3,4111.2,1.3073]
[1761652991005,5.20410911,4111.3,4111.2,1.31018425]
[1761652991204,5.42973767,4111.3,4111.2,1.31018425]
[1761652991509,5.20410911,4111.3,4111.2,1.31018425]
[1761652993004,3.86280911,4111.3,4111.2,4.62608425]
[1761652993205,5.20410911,4111.3,4111.2,4.62608425]
[1761652994020,0.55700911,4111.3,4111.2,4.69888425]
[1761652996518,0.55647552,4111.3,4111.2,2.77708425]
[1761652997017,0.55647552,4111.3,4111.2,4.69888425]
[1761652999229,0.55647552,4111.3,4111.2,12.69888425]
[1761652999729,4.0758471,4112.1,4111.9,4.6232]
[1761653000035,6.5136,4112.1,4112.0,4.6232]
[1761653000220,8.41149985,4112.1,4112.0,4.6232]
[1761653001324,7.07019985,4112.1,4112.0,4.6232]
[1761653002034,0.55659985,4112.1,4112.0,5.4051]
[1761653002334,0.55659985,4112.1,4111.5,4.19374]
[1761653002335,2.774,4112.0,4111.9,1.3073]
[1761653002635,3.3058,4111.7,4111.6,4.696]
[1761653002830,5.20369985,4111.7,4111.6,4.6232]
[1761653003427,5.20369985,4111.7,4111.6,2.7014]
[1761653005538,0.55659985,4111.7,4111.6,4.6232]
[1761653005740,3.86239985,4111.7,4111.6,4.6232]
[1761653005936,5.20369985,4111.7,4111.6,2.7014]
[1761653006837,3.20099985,4111.7,4111.5,3.2078]
[1761653007042,5.20369985,4111.6,4111.5,4.5151]
[1761653008341,5.20369985,4111.6,4111.5,1.3073]
[1761653008734,3.86239985,4111.6,4111.5,4.6232]
[1761653008933,3.86239985,4111.6,4111.5,4.696]
[1761653009135,3.86239985,4111.6,4111.5,4.6232]
[1761653009339,5.20369985,4111.6,4111.5,4.6232]
[1761653009539,0.55659985,4111.6,4111.5,8.6129]
[1761653009737,0.8680471,4112.0,4111.8,2.7014]
[1761653009931,0.8680471,4112.0,4111.9,4.6232]
[1761653010138,2.56223608,4112.0,4111.9,4.6232]
[1761653010848,0.55953608,4112.0,4111.9,4.696]
[1761653012342,5.97793608,4112.0,4111.9,1.3073]
[1761653012543,3.8651421,4112.0,4111.9,4.6232]
[1761653012742,0.5593421,4112.0,4111.9,4.696]
[1761653012943,0.5593421,4112.0,4111.9,4.6232]
[1761653013641,3.8651421,4112.0,4111.9,4.6232]
[1761653013841,5.9777421,4112.0,4111.9,2.7014]
[1761653014347,5.9777421,4112.0,4111.9,4.6232]
[1761653014845,3.8651421,4112.0,4111.9,4.6232]
[1761653015041,3.8651421,4112.0,4111.9,4.696]
[1761653015248,3.8651421,4112.0,4111.9,4.6232]
[1761653016655,2.5620421,4112.0,4111.9,4.696]
[1761653017443,0.5593421,4112.0,4111.9,4.6232]
[1761653017950,0.5593421,4112.0,4111.9,4.696]
[1761653018850,0.5593421,4112.0,4111.9,4.6232]
[1761653020751,2.3703421,4112.0,4111.9,4.6232]
[1761653021252,0.5593421,4112.0,4111.9,4.6232]
[1761653021453,0.5593421,4112.0,4111.9,4.696]
[1761653023648,2.3703421,4112.0,4111.9,4.6232]
[1761653024548,3.5506421,4112.0,4111.9,4.6232]
[1761653025362,5.5631421,4112.0,4111.9,1.3073]
[1761653025857,5.5631421,4112.0,4111.9,4.5118]
[1761653026441,0.5593421,4112.0,4111.9,4.5118]
[1761653026648,0.5593421,4112.0,4111.9,4.5846]
[1761653026953,3.5506421,4112.0,4111.9,4.5118]
[1761653027147,4.8297421,4112.0,4111.9,4.5118]
[1761653028049,5.5631421,4112.0,4111.9,4.5118]
[1761653028853,5.5631421,4112.0,4111.9,2.6388]
[1761653029756,5.5631421,4112.0,4111.9,4.5118]
[1761653030457,3.5506421,4112.0,4111.9,4.5118]
[1761653033055,0.5593421,4112.0,4111.9,4.5118]
[1761653033251,0.5593421,4112.0,4111.9,4.5846]
[1761653034461,0.5593421,4112.0,4111.9,4.5118]
[1761653034655,0.5593421,4112.0,4111.9,4.5846]
[1761653040549,3.5506421,4112.0,4111.9,4.5118]
[1761653046362,0.5593421,4112.0,4111.9,4.5118]
[1761653046561,0.5593421,4112.0,4111.9,4.5846]
[1761653046759,0.7688939,4112.3,4112.0,1.6752]
[1761653046965,0.00243606,4112.5,4112.4,3.7461]
[1761653047265,0.00243606,4112.5,4112.4,6.9539]
[1761653049466,0.00243606,4112.5,4112.4,7.0267]
[1761653049664,1.58583606,4112.5,4112.4,6.9539]
[1761653050065,0.00243606,4112.5,4112.4,6.9539]
[1761653051069,0.00243606,4112.5,4112.4,7.0267]
[1761653051861,1.5834,4113.2,4112.4,7.46444]
[1761653052059,2.6877,4113.2,4113.1,3.7461]
[1761653052264,3.3163,4113.0,4112.9,4.2733]
[1761653052465,4.4405,4113.0,4112.9,6.9539]
[1761653053069,4.44324877,4113.0,4112.9,6.9539]
[1761653053470,2.8858865,4113.9,4112.9,7.46439]
[1761653053768,1.5834,4113.9,4113.8,3.7461]
[1761653053968,2.6877,4113.9,4113.8,3.7461]
[1761653054363,2.6877,4113.9,4113.8,2.1131]
[1761653054364,3.8119,4113.9,4113.8,2.1131]
[1761653054674,2.2285,4113.6,4113.5,2.6985]
[1761653054972,3.8119,4113.6,4113.5,2.1131]
[1761653055170,3.8119,4113.6,4113.5,3.7461]
[1761653055669,1.5834,4113.8,4113.6,1.633]
[1761653055866,1.5834,4113.8,4113.5,0.4348]
[1761653055867,1.5834,4113.8,4113.7,3.7461]
[1761653056271,2.6877,4113.8,4113.7,3.8189]
[1761653056577,2.6877,4113.8,4113.7,3.7461]
[1761653056966,3.8119,4113.8,4113.7,2.1131]
[1761653057273,3.8119,4113.8,4113.7,3.7461]
[1761653057477,1.7329,4113.5,4113.4,1.0655]
[1761653057778,1.7329,4113.5,4113.0,3.7461]
[1761653057779,2.6877,4113.1,4113.0,3.7461]
[1761653058673,3.8119,4113.1,4113.0,1.0655]
[1761653058878,4.4405,4113.0,4112.9,4.2733]
[1761653059774,4.4405,4113.0,4112.9,5.3209]
[1761653060276,4.4405,4113.0,4112.9,6.9539]
[1761653060771,4.4405,4113.0,4112.9,5.3209]
[1761653061371,4.4405,4113.0,4112.9,6.9539]
[1761653063776,2.6877,4113.0,4112.9,7.0267]
[1761653064379,2.6877,4113.0,4112.9,6.9539]
[1761653064577,4.4405,4113.0,4112.9,3.2078]
[1761653064876,3.8119,4112.4,4112.3,6.9539]
[1761653065077,1.1043,4111.9,4111.8,4.2733]
[1761653065381,3.8119,4111.9,4111.8,6.9539]
[1761653066382,3.8119,4111.9,4111.8,5.3209]
[1761653067986,3.8119,4111.9,4111.8,6.9539]
[1761653069180,3.8119,4111.9,4111.8,5.3209]
[1761653070895,3.8119,4111.9,4111.8,6.9539]
[1761653071189,3.8119,4111.9,4111.8,3.2078]
[1761653071387,3.8119,4111.9,4111.8,6.9539]
[1761653071594,0.6286,4112.5,4112.3,3.7461]
[1761653071595,2.6877,4112.4,4112.3,3.7461]
[1761653071890,3.23834657,4112.4,4112.3,6.9539]
[1761653072087,2.6877,4112.4,4112.3,6.9539]
[1761653072394,4.36261893,4112.4,4112.3,5.3209]
[1761653074588,4.36261893,4112.4,4112.3,3.2078]
[1761653075393,2.85201893,4112.4,4111.8,3.2078]
[1761653075595,2.5146,4111.9,4111.8,5.3608]
[1761653075892,3.6393,4111.9,4111.8,5.3608]
[1761653080090,3.6393,4111.9,4111.8,4.223]
[1761653082603,3.6393,4111.9,4111.8,3.2078]
[1761653082894,3.6393,4111.9,4111.8,4.223]
[1761653084094,3.6393,4111.9,4111.8,1.0152]
[1761653085386,0.9738,4112.4,4111.9,1.5532]
[1761653085698,3.8364,4112.5,4111.9,1.5532]
[1761653085699,4.2663,4112.0,4111.9,1.0152]
[1761653086198,4.81742384,4112.0,4111.9,1.0152]
[1761653086400,4.81742384,4112.0,4111.9,2.153]
[1761653088797,4.81742384,4112.0,4111.9,3.7062]
[1761653089603,0.55112384,4112.0,4111.9,3.7062]
[1761653089993,2.09192384,4112.0,4111.9,3.7062]
[1761653090193,0.9738,4111.7,4111.6,5.7762]
[1761653090396,2.5146,4111.7,4111.6,6.914]
[1761653091195,3.6393,4111.7,4111.6,4.223]
[1761653091703,3.6393,4111.7,4111.6,3.2078]
[1761653091897,4.19125097,4111.7,4111.6,3.2078]
[1761653092095,4.26405097,4111.7,4111.6,3.2078]
[1761653092698,4.19125097,4111.7,4111.6,3.2078]
[1761653096206,2.5146,4111.3,4111.2,2.15588425]
[1761653096409,3.06655097,4111.3,4111.2,6.91688425]
[1761653097007,4.19125097,4111.3,4111.2,6.91688425]
[1761653097910,4.19125097,4111.3,4111.2,3.70908425]
[1761653098209,4.19125097,4111.3,4111.2,5.36368425]
[1761653103219,4.19125097,4111.3,4111.2,6.91688425]
[1761653104112,0.55195097,4111.3,4111.2,7.35475425]
[1761653104316,3.549,4112.4,4112.3,3.4484]
[1761653104613,2.376,4112.7,4112.6,1.9872]
[1761653104811,2.376,4112.7,4112.6,3.2826]
[1761653105213,3.4104,4112.7,4112.6,1.9872]
[1761653105514,0.6286,4113.0,4112.3,6.4904]
[1761653105515,3.4104,4112.4,4112.3,6.4904]
[1761653105718,3.4104,4112.9,4112.8,3.2826]
[1761653105912,3.4104,4112.9,4112.8,1.9872]
[1761653109825,1.308,4112.8,4112.6,0.9478]
[1761653110029,3.1274,4112.7,4112.6,0.9478]
[1761653110217,0.8798,4112.4,4112.3,4.1556]
[1761653110526,3.1274,4112.4,4112.3,5.0657]
[1761653110726,3.1274,4112.4,4112.3,6.3448]
[1761653112824,3.1274,4112.4,4111.6,1.09456]
[1761653112825,1.308,4112.3,4111.8,3.2078]
[1761653113029,3.1274,4111.9,4111.8,4.1556]
[1761653113227,3.1274,4111.9,4111.8,5.0657]
[1761653113423,2.1878,4111.9,4111.8,6.3448]
[1761653113620,1.308,4112.2,4112.1,3.137]
[1761653113925,2.1878,4112.2,4112.1,3.137]
[1761653114121,3.1274,4112.2,4112.1,3.137]
[1761653114315,3.1274,4112.2,4112.1,1.8579]
[1761653114525,3.1274,4112.2,4112.1,3.137]
[1761653114726,2.1878,4112.2,4112.1,3.137]
[1761653115430,3.1274,4112.2,4112.1,0.9478]
[1761653115628,1.8194,4112.2,4111.8,4.1556]
[1761653115835,3.1274,4111.9,4111.8,5.0657]
[1761653116635,1.308,4111.9,4111.8,6.3448]
[1761653117033,1.308,4111.9,4111.8,5.0657]
[1761653117034,3.1274,4111.9,4111.8,5.0657]